bitfinex-derivatives/quotes_SOLF0:USTF0_20250509
["timestamp","ask_amount","ask_price","bid_price","bid_amount"]
[1746784235066,337.0,165.61,165.51,8.0421]
[1746784235257,337.0,165.61,165.51,2.0]
[1746784236369,6.0394,165.59,165.51,2.0]
[1746784236768,6.0394,165.59,165.55,6.0404]
[1746784237067,6.039,165.6,165.51,2.0]
[1746784237268,337.0,165.61,165.51,2.0]
[1746784237671,337.0,165.61,165.52,10.43479883]
[1746784238367,343.0388,165.61,165.56,6.0401]
[1746784238568,6.0388,165.61,165.52,10.43479883]
[1746784238766,45.16,165.63,165.52,10.43479883]
[1746784238967,6.0383,165.62,165.57,6.0396]
[1746784239166,45.16,165.63,165.57,6.0396]
[1746784239369,337.0,165.66,165.52,10.43479883]
[1746784239559,6.0379,165.63,165.59,6.0391]
[1746784240056,337.0,165.66,165.52,10.43479883]
[1746784240669,6.0385,165.62,165.57,6.0397]
[1746784240868,337.0,165.66,165.57,6.0397]
[1746784241266,6.0388,165.61,165.57,6.0397]
[1746784241570,337.0,165.66,165.52,10.43479883]
[1746784241869,337.0,165.66,165.53,45.06]
[1746784242172,337.0,165.66,165.55,6.0406]
[1746784242368,337.0,165.66,165.52,10.43479883]
[1746784242566,337.0,165.66,165.53,45.04]
[1746784242872,337.0,165.66,165.55,6.0406]
[1746784243080,337.0,165.66,165.53,45.04]
[1746784243280,337.0,165.66,165.54,6.041]
[1746784244479,6.0398,165.58,165.54,6.041]
[1746784244670,337.0,165.66,165.55,6.0407]
[1746784244870,6.0394,165.59,165.53,45.04]
[1746784245172,337.0,165.65,165.53,45.04]
[1746784245377,6.0392,165.6,165.53,45.04]
[1746784245676,337.0,165.65,165.57,6.0397]
[1746784245882,337.0,165.65,165.53,45.04]
[1746784246582,6.0388,165.61,165.53,45.04]
[1746784246782,6.0388,165.61,165.57,6.0397]
[1746784247274,337.0,165.65,165.55,6.0405]
[1746784247478,337.0,165.65,165.53,45.04]
[1746784247674,6.0395,165.59,165.53,45.04]
[1746784248081,337.0,165.65,165.53,45.04]
[1746784248485,337.0,165.65,165.57,6.0396]
[1746784248784,337.0,165.65,165.53,45.04]
[1746784248982,337.0,165.65,165.57,6.0398]
[1746784249183,337.0,165.65,165.53,45.04]
[1746784250684,6.0392,165.6,165.56,6.0402]
[1746784250888,337.0,165.65,165.53,45.04]
[1746784251284,337.0,165.65,165.55,6.0404]
[1746784251689,6.0397,165.58,165.54,6.041]
[1746784251985,337.0,165.65,165.53,45.04]
[1746784252282,6.0397,165.58,165.55,6.0405]
[1746784252484,6.0397,165.58,165.53,45.04]
[1746784252887,337.0,165.65,165.54,6.0407]
[1746784253088,337.0,165.64,165.54,6.0407]
[1746784253488,6.0399,165.58,165.54,6.0407]
[1746784254088,337.0,165.64,165.53,44.86]
[1746784254284,381.84,165.69,165.53,44.86]
[1746784254585,6.0361,165.68,165.64,6.0371]
[1746784254785,337.0,165.74,165.6,10.43479883]
[1746784255180,6.0356,165.7,165.59,523.18]
[1746784255385,337.0,165.74,165.62,10.43479883]
[1746784255888,6.0352,165.71,165.62,10.43479883]
[1746784256594,337.0,165.74,165.62,10.43479883]
[1746784256792,337.0,165.79,165.66,10.43479883]
[1746784256998,337.0,165.79,165.67,44.8]
[1746784257292,6.0337,165.75,165.67,44.8]
[1746784257487,6.0337,165.75,165.71,6.0346]
[1746784257693,337.0,165.79,165.67,44.8]
[1746784257894,337.0,165.79,165.72,6.0345]
[1746784258390,337.0,165.79,165.7,10.43479883]
[1746784258583,337.0,165.85,165.7,10.43479883]
[1746784258784,6.0313,165.81,165.7,10.43479883]
[1746784259993,337.0,165.85,165.7,10.43479883]
[1746784260391,6.0311,165.82,165.7,10.43479883]
[1746784260890,6.0311,165.82,165.77,6.0325]
[1746784261097,6.0313,165.81,165.77,6.0325]
[1746784261896,6.0316,165.8,165.77,6.0325]
[1746784262098,337.0,165.85,165.75,44.72]
[1746784262597,6.0331,165.76,165.75,44.72]
[1746784262793,337.0,165.84,165.69,522.94]
[1746784262794,44.68,165.82,165.69,522.94]
[1746784263100,337.0,165.81,165.69,522.94]
[1746784263296,337.0,165.8,165.69,522.94]
[1746784263493,347.43479883,165.8,165.69,522.94]
[1746784263693,6.0353,165.7,165.69,522.94]
[1746784264498,6.0353,165.7,165.69,478.26]
[1746784264794,55.07479883,165.76,165.63,7.11422464]
[1746784265098,337.0,165.75,165.63,7.11422464]
[1746784265395,337.0,165.75,165.62,117.07479883]
[1746784265599,337.0,165.75,165.62,106.64]
[1746784266001,337.0,165.75,165.62,44.64]
[1746784266194,6.0344,165.73,165.62,44.64]
[1746784266397,337.0,165.75,165.62,44.64]
[1746784266901,6.0343,165.73,165.68,6.0359]
[1746784267902,6.0347,165.72,165.68,6.0359]
[1746784268201,337.0,165.75,165.67,6.0363]
[1746784268405,337.0,165.75,165.62,44.64]
[1746784268602,6.0352,165.71,165.62,44.64]
[1746784268797,337.0,165.75,165.6,550.43479883]
[1746784269005,337.0,165.75,165.61,44.56]
[1746784269204,337.0,165.75,165.6,478.0]
[1746784269405,337.0,165.75,165.61,44.56]
[1746784269707,6.0363,165.68,165.61,44.56]
[1746784269899,347.43479883,165.75,165.6,478.0]
[1746784270106,337.0,165.74,165.6,478.0]
[1746784270507,337.0,165.73,165.6,478.0]
[1746784272703,337.0,165.73,165.63,6.0376]
[1746784272907,6.0365,165.67,165.63,6.0376]
[1746784273404,337.0,165.73,165.63,6.0376]
[1746784273704,6.0364,165.67,165.63,6.0376]
[1746784274304,337.0,165.72,165.6,478.0]
[1746784274510,337.0,165.71,165.6,478.0]
[1746784274709,44.48,165.7,165.6,478.0]
[1746784275011,337.0,165.69,165.6,478.0]
[1746784275707,337.0,165.69,165.54,44.46]
[1746784276012,10.43479883,165.67,165.54,44.46]
[1746784276319,337.0,165.66,165.52,609.38140364]
[1746784276613,6.0404,165.56,165.52,615.42310364]
[1746784276913,6.0404,165.56,165.52,609.38140364]
[1746784277113,44.44,165.63,165.52,609.38140364]
[1746784277307,337.0,165.62,165.52,478.1]
[1746784277507,337.0,165.61,165.44,478.1]
[1746784277706,337.0,165.61,165.45,44.44]
[1746784278104,6.0418,165.52,165.48,6.043]
[1746784278308,337.0,165.61,165.45,44.44]
[1746784278507,337.0,165.6,165.45,44.44]
[1746784278711,6.0418,165.52,165.44,478.1]
[1746784278911,6.0418,165.52,165.44,522.52]
[1746784280015,44.42,165.57,165.44,522.52]
[1746784280514,6.0414,165.54,165.44,522.52]
[1746784280713,44.42,165.57,165.44,522.52]
[1746784281514,6.0418,165.52,165.45,6.044]
[1746784281714,6.0418,165.52,165.44,522.52]
[1746784282010,6.0418,165.52,165.46,6.0439]
[1746784282214,6.0418,165.52,165.44,478.1]
[1746784282516,6.0418,165.52,165.47,6.0436]
[1746784282714,6.0415,165.53,165.44,478.1]
[1746784282915,44.42,165.57,165.44,478.1]
[1746784283121,44.42,165.57,165.48,6.043]
[1746784283514,44.42,165.57,165.44,478.1]
[1746784283709,44.42,165.57,165.49,6.0427]
[1746784283914,6.0418,165.52,165.44,478.1]
[1746784285315,6.0438,165.47,165.44,478.1]
[1746784285520,337.0,165.56,165.44,478.1]
[1746784285817,337.0,165.55,165.44,478.1]
[1746784286218,337.0,165.55,165.42,44.36]
[1746784286219,337.0,165.55,165.38,478.42]
[1746784286414,6.0439,165.47,165.43,6.045]
[1746784286611,337.0,165.54,165.38,478.42]
[1746784286816,337.0,165.53,165.39,44.34]
[1746784287010,337.0,165.53,165.45,6.0443]
[1746784287213,337.0,165.53,165.39,54.77479883]
[1746784287411,337.0,165.53,165.39,116.77479883]
[1746784287620,6.0435,165.48,165.43,6.0448]
[1746784287825,337.0,165.53,165.43,10.43479883]
[1746784288011,343.0417,165.53,165.48,6.043]
[1746784288215,6.0417,165.53,165.46,44.32]
[1746784288518,6.0412,165.54,165.46,44.32]
[1746784288821,337.0,165.6,165.46,44.32]
[1746784289022,6.0397,165.58,165.53,6.0414]
[1746784289217,337.0,165.6,165.47,10.43479883]
[1746784289416,337.0,165.6,165.49,478.5]
[1746784289619,6.0395,165.59,165.53,6.0411]
[1746784289817,337.0,165.6,165.49,478.5]
[1746784290222,337.0,165.67,165.49,478.5]
[1746784290422,381.3,165.66,165.51,10.43479883]
[1746784290615,381.3,165.66,165.52,44.3]
[1746784291025,6.0396,165.58,165.53,6.0414]
[1746784291223,381.3,165.66,165.52,44.3]
[1746784291527,6.0394,165.59,165.54,6.0408]
[1746784292019,337.0,165.65,165.52,44.3]
[1746784292423,337.0,165.65,165.49,478.5]
[1746784292623,6.0399,165.58,165.49,478.5]
[1746784292825,337.0,165.65,165.5,10.43479883]
[1746784293122,6.0388,165.61,165.5,10.43479883]
[1746784293322,337.0,165.64,165.5,10.43479883]
[1746784293624,6.0382,165.62,165.5,10.43479883]
[1746784293827,337.0,165.64,165.5,10.43479883]
[1746784294222,6.0387,165.61,165.5,10.43479883]
[1746784294422,337.0,165.64,165.5,10.43479883]
[1746784294822,6.0376,165.64,165.54,10.43479883]
[1746784295122,337.0,165.69,165.55,44.24]
[1746784295322,337.0,165.69,165.6,6.0386]
[1746784295630,337.0,165.69,165.56,62.0]
[1746784295825,337.0,165.69,165.59,6.0392]
[1746784296223,337.0,165.69,165.55,54.67479883]
[1746784296921,6.0368,165.66,165.55,54.67479883]
[1746784297224,337.0,165.69,165.55,54.67479883]
[1746784297422,337.0,165.75,165.59,10.43479883]
[1746784297622,381.2,165.74,165.59,478.42]
[1746784298528,381.2,165.74,165.59,484.4592]
[1746784298730,381.2,165.74,165.59,478.42]
[1746784299623,381.2,165.74,165.59,484.4592]
[1746784300124,338.04988283,165.73,165.56,6.0401]
[1746784300329,10.43479883,165.69,165.53,44.16]
[1746784300532,381.16,165.68,165.53,44.16]
[1746784300734,381.16,165.68,165.56,6.0402]
[1746784301129,381.16,165.68,165.53,44.16]
[1746784301329,381.16,165.68,165.59,1.0]
[1746784301629,337.0,165.68,165.59,1.0]
[1746784301830,6.0374,165.65,165.61,6.0384]
[1746784302132,337.0,165.68,165.6,44.14]
[1746784302328,6.037,165.66,165.6,44.14]
[1746784302532,337.0,165.68,165.6,44.14]
[1746784303237,337.0,165.68,165.59,1.0]
[1746784304136,6.0388,165.61,165.59,1.0]
[1746784304434,337.0,165.68,165.59,1.0]
[1746784304635,6.0389,165.6,165.59,1.0]
[1746784304836,44.1,165.62,165.43,478.32]
[1746784305134,54.53479883,165.62,165.44,44.1]
[1746784305332,6.0407,165.56,165.5,6.0422]
[1746784305634,54.53479883,165.62,165.44,44.1]
[1746784305936,44.1,165.62,165.47,10.43479883]
[1746784306234,6.0403,165.57,165.52,6.0417]
[1746784306433,337.0,165.66,165.44,44.1]
[1746784306434,337.0,165.66,165.5,44.1]
[1746784306635,381.1,165.65,165.5,44.1]
[1746784307030,381.1,165.65,165.5,522.42]
[1746784307535,381.1,165.65,165.54,6.0408]
[1746784307837,381.1,165.65,165.5,522.42]
[1746784308134,381.1,165.65,165.5,478.32]
[1746784308331,337.0,165.64,165.5,478.32]
[1746784308533,10.43479883,165.61,165.5,478.32]
[1746784308835,6.0427,165.5,165.45,6.0443]
[1746784309134,6.0437,165.47,165.42,528.4654]
[1746784309440,6.0437,165.47,165.35,7.11422464]
[1746784309441,10.43479883,165.5,165.35,7.11422464]
[1746784309634,54.51479883,165.49,165.35,7.11422464]
[1746784309936,54.51479883,165.49,165.39,7.11422464]
[1746784310237,6.0455,165.42,165.39,7.11422464]
[1746784310436,44.08,165.49,165.39,7.11422464]
[1746784312941,44.08,165.49,165.41,6.0457]
[1746784313129,44.08,165.49,165.39,7.11422464]
[1746784313436,44.08,165.49,165.41,6.0457]
[1746784313639,44.08,165.49,165.39,7.11422464]
[1746784314439,44.08,165.49,165.31,1.0]
[1746784315241,6.0437,165.47,165.33,17.10799827]
[1746784315440,6.0437,165.47,165.34,46.22]
[1746784315741,6.0437,165.47,165.39,6.0464]
[1746784315942,6.0437,165.47,165.34,46.22]
[1746784316244,6.044,165.46,165.4,6.0461]
[1746784316541,6.044,165.46,165.34,46.22]
[1746784316741,6.0444,165.45,165.34,46.22]
[1746784316941,6.0444,165.45,165.39,6.0464]
[1746784317135,6.0444,165.45,165.34,108.22]
[1746784317835,6.044,165.47,165.34,108.22]
[1746784318142,6.044,165.47,165.41,6.0455]
[1746784318334,6.0434,165.48,165.34,108.22]
[1746784318535,337.0,165.51,165.37,17.10799827]
[1746784318730,337.0,165.51,165.38,478.68]
[1746784319335,343.0422,165.51,165.45,6.0441]
[1746784319540,337.0,165.51,165.41,63.14799827]
[1746784319935,6.0412,165.54,165.48,6.0432]
[1746784320143,46.02,165.55,165.41,63.14799827]
[1746784320439,6.0415,165.53,165.47,6.0436]
[1746784320740,45.96,165.57,165.41,63.14799827]
[1746784321038,337.0,165.58,165.45,17.10799827]
[1746784321642,337.0,165.58,165.49,17.10799827]
[1746784321842,45.8,165.62,165.5,45.74]
[1746784322048,6.0396,165.59,165.5,45.74]
[1746784322343,45.8,165.62,165.5,45.74]
[1746784322543,6.0396,165.59,165.53,6.0411]
[1746784322844,45.8,165.62,165.5,45.74]
[1746784323249,6.0385,165.61,165.5,45.74]
[1746784323548,45.8,165.62,165.5,45.74]
[1746784323846,6.04,165.58,165.5,45.74]
[1746784324244,6.0393,165.59,165.5,45.74]
[1746784324446,1.20743781,165.64,165.5,45.74]
[1746784325341,6.0402,165.57,165.51,6.0419]
[1746784325541,1.20743781,165.64,165.5,45.74]
[1746784325951,6.039,165.6,165.55,6.0407]
[1746784326251,1.20743781,165.64,165.5,45.74]
[1746784326649,1.20743781,165.64,165.54,6.041]
[1746784326847,1.20743781,165.64,165.49,495.82799827]
[1746784327047,1.20743781,165.64,165.5,45.42]
[1746784327048,6.039,165.6,165.5,45.42]
[1746784327554,6.0393,165.59,165.54,6.0409]
[1746784327951,1.20743781,165.64,165.5,45.42]
[1746784328151,6.0403,165.57,165.52,6.0418]
[1746784328355,1.20743781,165.64,165.52,6.0418]
[1746784328550,337.0,165.63,165.52,6.0418]
[1746784328752,6.0398,165.58,165.53,6.0414]
[1746784328952,337.0,165.63,165.5,45.42]
[1746784329950,6.0389,165.6,165.5,45.42]
[1746784330152,337.0,165.63,165.5,45.42]
[1746784330659,6.039,165.6,165.56,6.0403]
[1746784330853,337.0,165.63,165.56,6.0403]
[1746784331053,6.0383,165.62,165.58,6.0396]
[1746784331454,1.20743781,165.64,165.53,17.10799827]
[1746784331649,6.0383,165.62,165.53,17.10799827]
[1746784331853,1.20743781,165.64,165.53,17.10799827]
[1746784332053,7.24493781,165.64,165.59,6.0389]
[1746784332253,1.20743781,165.64,165.56,44.94]
[1746784333260,1.20743781,165.64,165.61,6.0383]
[1746784333462,337.0,165.75,165.62,45.14]
[1746784333661,337.0,165.75,165.59,495.58799827]
[1746784333662,6.0355,165.7,165.61,45.14]
[1746784333862,337.0,165.75,165.61,55.63122188]
[1746784334363,6.0354,165.7,165.65,6.037]
[1746784334561,6.0354,165.7,165.61,55.63122188]
[1746784334763,6.035,165.71,165.61,55.63122188]
[1746784335262,337.0,165.75,165.61,55.63122188]
[1746784335561,6.0352,165.71,165.61,55.63122188]
[1746784335763,6.0352,165.71,165.62,17.04596966]
[1746784335963,337.0,165.75,165.65,6.0369]
[1746784336660,337.0,165.75,165.63,6.0375]
[1746784337064,337.0,165.75,165.62,50.8381]
[1746784337259,337.0,165.75,165.6,478.48]
[1746784337463,6.0375,165.64,165.6,523.18]
[1746784337667,17.04596966,165.73,165.6,478.48]
[1746784337859,381.7,165.72,165.6,478.48]
[1746784338262,17.04596966,165.69,165.6,478.48]
[1746784338460,381.7,165.72,165.55,44.7]
[1746784338765,17.04596966,165.7,165.59,6.0392]
[1746784338962,17.04596966,165.7,165.55,44.7]
[1746784339265,337.0,165.71,165.55,44.7]
[1746784340065,6.0366,165.67,165.56,62.0]
[1746784340364,337.0,165.71,165.55,44.7]
[1746784340566,6.0377,165.64,165.55,44.7]
[1746784340768,337.0,165.71,165.55,44.7]
[1746784341366,337.0,165.71,165.59,6.0389]
[1746784341766,6.0376,165.64,165.55,44.7]
[1746784341962,6.0376,165.64,165.6,6.0388]
[1746784342265,6.0368,165.66,165.55,44.7]
[1746784342466,6.0368,165.66,165.62,6.0381]
[1746784342667,6.0368,165.66,165.55,44.7]
[1746784342668,337.0,165.71,165.55,44.7]
[1746784342858,337.0,165.7,165.55,44.7]
[1746784343058,337.0,165.7,165.61,6.0383]
[1746784343258,337.0,165.7,165.56,17.04596966]
[1746784343667,337.0,165.7,165.61,6.0382]
[1746784344168,6.037,165.66,165.61,6.0382]
[1746784344370,337.0,165.7,165.56,17.04596966]
[1746784344559,337.0,165.69,165.56,44.36]
[1746784344763,6.0382,165.62,165.56,44.36]
[1746784345069,6.0382,165.62,165.52,495.34596966]
[1746784345268,6.0382,165.62,165.53,44.34]
[1746784345470,6.0382,165.62,165.54,44.32]
[1746784345670,337.0,165.69,165.52,495.34596966]
[1746784345969,354.04596966,165.68,165.52,478.3]
[1746784346159,6.0395,165.59,165.54,6.0408]
[1746784346359,44.4,165.64,165.52,478.3]
[1746784346563,337.0,165.67,165.52,495.34596966]
[1746784346765,6.0378,165.63,165.52,495.34596966]
[1746784346969,337.0,165.67,165.52,495.34596966]
[1746784348068,6.0383,165.62,165.52,495.34596966]
[1746784348261,337.0,165.67,165.52,495.34596966]
[1746784348461,6.0392,165.6,165.53,44.22]
[1746784348666,337.0,165.67,165.52,478.3]
[1746784349969,337.0,165.67,165.54,17.04596966]
[1746784350271,6.0381,165.63,165.59,6.0392]
[1746784350665,337.0,165.67,165.54,17.04596966]
[1746784351972,343.0366,165.67,165.63,6.0375]
[1746784352169,44.14,165.73,165.6,44.14]
[1746784352371,6.0354,165.7,165.66,6.0366]
[1746784352573,337.0,165.74,165.66,6.0366]
[1746784353077,337.0,165.74,165.67,6.0363]
[1746784353573,337.0,165.74,165.65,6.0368]
[1746784353772,337.0,165.74,165.62,495.34596966]
[1746784353975,337.0,165.74,165.62,557.34596966]
[1746784354376,337.0,165.74,165.66,17.04596966]
[1746784354578,6.0331,165.76,165.67,44.12]
[1746784354779,44.12,165.8,165.67,44.12]
[1746784355172,337.0,165.83,165.67,44.12]
[1746784355370,337.0,165.83,165.71,6.0346]
[1746784355575,337.0,165.83,165.67,44.12]
[1746784355878,337.0,165.83,165.7,17.04596966]
[1746784356478,337.0,165.83,165.73,6.0339]
[1746784356680,337.0,165.83,165.73,50.1539]
[1746784356879,337.0,165.83,165.73,44.12]
[1746784359278,6.0333,165.76,165.73,44.12]
[1746784359780,337.0,165.83,165.73,44.12]
[1746784359978,337.0,165.82,165.69,6.0355]
[1746784360178,337.0,165.82,165.69,44.1]
[1746784361382,6.0338,165.74,165.7,6.0352]
[1746784361779,337.0,165.82,165.69,44.1]
[1746784362283,337.0,165.82,165.7,17.04596966]
[1746784362487,337.0,165.82,165.73,6.0339]
[1746784362883,337.0,165.82,165.7,17.04596966]
[1746784363076,6.033,165.77,165.7,17.04596966]
[1746784363279,337.0,165.82,165.7,17.04596966]
[1746784363880,337.0,165.82,165.74,6.0337]
[1746784364183,337.0,165.82,165.7,18.04596966]
[1746784364884,6.0317,165.8,165.7,18.04596966]
[1746784365184,337.0,165.82,165.7,18.04596966]
[1746784365483,6.032,165.79,165.7,18.04596966]
[1746784365675,337.0,165.82,165.7,18.04596966]
[1746784366080,6.0321,165.79,165.74,6.0335]
[1746784366581,6.0321,165.79,165.75,6.0334]
[1746784366786,6.0321,165.79,165.7,18.04596966]
[1746784367087,6.0321,165.79,165.74,6.0336]
[1746784367585,6.0317,165.8,165.7,18.04596966]
[1746784367784,6.0317,165.8,165.71,10.48014335]
[1746784367986,337.0,165.82,165.71,10.48014335]
[1746784368185,6.0324,165.78,165.73,6.0338]
[1746784368687,6.0324,165.78,165.74,6.0338]
[1746784368988,337.0,165.82,165.71,10.48014335]
[1746784369287,337.0,165.82,165.74,6.0335]
[1746784369586,6.0322,165.79,165.71,10.48014335]
[1746784369783,337.0,165.82,165.71,10.48014335]
[1746784370586,337.0,165.82,165.75,6.0332]
[1746784370785,337.0,165.82,165.72,477.88]
[1746784371188,343.0309,165.82,165.75,10.48014335]
[1746784371390,337.0,165.82,165.76,44.06]
[1746784371586,337.0,165.9,165.76,44.06]
[1746784371790,6.03,165.85,165.76,44.06]
[1746784371992,337.0,165.9,165.76,44.06]
[1746784372394,6.0297,165.86,165.76,44.06]
[1746784373491,6.0297,165.86,165.77,10.48014335]
[1746784373795,6.0298,165.85,165.77,10.48014335]
[1746784373994,6.0298,165.85,165.81,6.0312]
[1746784374194,337.0,165.9,165.81,6.0312]
[1746784375897,337.0,165.9,165.82,6.0309]
[1746784376098,6.0297,165.86,165.82,6.0309]
[1746784376496,337.0,165.9,165.83,6.0305]
[1746784376691,6.0293,165.87,165.83,6.0305]
[1746784376896,337.0,165.9,165.77,10.48014335]
[1746784377197,337.0,165.98,165.81,10.48014335]
[1746784377395,337.0,165.98,165.82,521.78]
[1746784377396,381.04,165.98,165.82,521.78]
[1746784377596,337.0,165.98,165.88,6.0287]
[1746784377897,337.0,165.98,165.84,10.48014335]
[1746784378398,6.0264,165.95,165.84,10.48014335]
[1746784378798,6.0261,165.96,165.91,6.0274]
[1746784378998,337.0,165.98,165.91,6.0274]
[1746784379498,337.0,165.98,165.93,6.0268]
[1746784379898,337.0,165.98,165.89,44.02]
[1746784379899,6.0259,165.96,165.89,44.02]
[1746784380396,6.0262,165.95,165.89,44.02]
[1746784380591,6.0262,165.95,165.91,6.0274]
[1746784380994,6.0259,165.96,165.89,44.02]
[1746784381197,6.0259,165.96,165.91,6.0276]
[1746784381399,6.0259,165.96,165.89,44.02]
[1746784381595,6.0255,165.97,165.89,44.02]
[1746784381801,44.0,166.04,165.89,44.02]
[1746784382004,337.0,166.05,165.89,44.02]
[1746784382300,337.0,166.05,165.93,6.0268]
[1746784382699,6.0254,165.98,165.89,44.02]
[1746784382900,337.0,166.05,165.89,44.02]
[1746784383197,6.0248,165.99,165.89,44.02]
[1746784383403,337.0,166.05,165.89,44.02]
[1746784383706,6.0246,166.0,165.89,44.02]
[1746784383999,337.0,166.05,165.89,44.02]
[1746784384803,337.0,166.05,165.92,10.48014335]
[1746784385000,337.0,166.05,165.96,6.0257]
[1746784385302,6.023,166.04,165.95,43.98]
[1746784385500,337.0,166.05,165.95,43.98]
[1746784385700,337.0,166.05,165.95,50.006]
[1746784386401,337.0,166.05,165.96,6.0258]
[1746784386702,337.0,166.05,165.95,43.98]
[1746784386901,6.0245,166.0,165.96,6.0258]
[1746784387300,337.0,166.05,165.95,43.98]
[1746784387800,337.0,166.04,165.92,477.54]
[1746784388201,6.0257,165.97,165.93,6.0266]
[1746784389006,337.0,166.04,165.94,6.0263]
[1746784389205,337.0,166.03,165.92,477.54]
[1746784389508,6.0251,165.98,165.94,6.0263]
[1746784389805,337.0,166.03,165.92,477.54]
[1746784390002,6.0246,166.0,165.92,477.54]
[1746784390206,337.0,166.03,165.92,477.54]
[1746784390908,6.0257,165.97,165.93,6.0267]
[1746784391206,337.0,166.03,165.92,477.54]
[1746784391397,6.026,165.96,165.92,483.5671]
[1746784391600,337.0,166.03,165.92,477.54]
[1746784391799,6.026,165.96,165.92,477.54]
[1746784391997,337.0,166.03,165.92,477.54]
[1746784392197,337.0,166.02,165.92,477.54]
[1746784392398,6.0256,165.97,165.94,6.0265]
[1746784392608,337.0,166.02,165.92,477.54]
[1746784392907,6.0258,165.97,165.93,6.0267]
[1746784393102,337.0,166.02,165.93,6.0267]
[1746784393408,6.0258,165.96,165.93,6.0267]
[1746784393706,337.0,166.02,165.92,477.54]
[1746784394108,6.026,165.96,165.93,6.0267]
[1746784394313,337.0,166.02,165.92,477.54]
[1746784394511,6.0269,165.93,165.92,477.54]
[1746784394903,337.0,166.01,165.86,43.92]
[1746784395104,10.48014335,166.0,165.84,487.80014335]
[1746784395305,337.0,165.99,165.84,477.32]
[1746784395500,6.0294,165.87,165.84,477.32]
[1746784395702,380.9,165.95,165.84,477.32]
[1746784395901,337.0,165.94,165.84,477.32]
[1746784396107,337.0,165.93,165.84,477.32]
[1746784396609,6.0292,165.87,165.84,477.32]
[1746784397100,337.0,165.93,165.84,477.32]
[1746784397303,337.0,165.92,165.79,43.9]
[1746784397705,6.0297,165.86,165.82,6.0308]
[1746784397904,337.0,165.92,165.76,477.32]
[1746784398110,337.0,165.91,165.76,521.22]
[1746784398312,6.0299,165.85,165.81,6.031]
[1746784399210,6.0295,165.86,165.82,6.0308]
[1746784399411,337.0,165.91,165.78,10.48014335]
[1746784399711,6.0295,165.86,165.82,6.0307]
[1746784400214,6.0295,165.86,165.78,10.48014335]
[1746784400412,337.0,165.91,165.78,10.48014335]
[1746784400819,6.0301,165.85,165.8,6.0316]
[1746784401013,337.0,165.91,165.76,521.22]
[1746784401317,337.0,165.9,165.79,6.0319]
[1746784401514,6.0307,165.83,165.79,6.0319]
[1746784401716,43.88,165.89,165.76,477.32]
[1746784401910,337.0,165.88,165.79,6.032]
[1746784402108,6.0306,165.83,165.79,6.032]